{"text_format":"1","workbook":"xlsx","n_sheets":5,"sheets":["стр.1_2","стр.3_5","стр.6_11","стр.12","стр.13"],"not_rendered":{"charts":0,"images":0,"macros":0,"external_links":0,"defined_names":5,"comments":0,"pivot_tables":0},"unopened":[],"bounds":{"document_bytes":16777216,"sheet_cells":100000,"rows_first":2000,"rows_last":500,"rows_between":2000,"halvings":0,"cell_chars":16384,"cell_head_chars":4096},"cells_cut":0,"cells_raw":0,"read":"whole","date_system":"1900"}

{"sheet":"стр.1_2","index":0,"n_rows":51,"n_cols":97,"rows_kept":51,"cut":false,"hidden":false,"merged":[[40,0,40,104],[48,0,48,104],[50,0,50,104],[51,0,51,104],[41,0,41,104],[42,0,42,104],[43,0,43,104],[47,0,47,104],[44,0,44,104],[45,0,45,104],[46,0,46,104],[49,0,49,104],[34,0,34,53],[36,1,36,103],[38,0,38,104],[39,0,39,104],[34,55,34,104],[24,0,24,35],[32,0,32,53],[24,37,24,74],[28,37,28,74],[25,89,25,104],[26,89,26,104],[27,89,27,104],[29,89,29,104],[32,55,32,104],[21,89,21,104],[19,89,19,104],[28,89,28,104],[20,89,20,104],[30,89,30,104],[22,89,22,104],[23,89,23,104],[24,89,24,104],[17,64,17,67],[17,68,17,70],[11,66,11,69],[15,29,15,35],[15,36,15,39],[14,0,14,104],[17,36,17,37],[17,42,17,44],[17,45,17,59],[17,60,17,63],[17,38,17,41],[15,68,15,75],[11,70,11,72],[1,68,1,104],[11,96,11,98],[8,77,8,104],[9,77,9,104],[6,58,6,104],[7,58,7,104],[11,92,11,95],[11,64,11,65],[11,73,11,87],[11,88,11,91],[5,58,5,104],[8,58,8,75],[9,58,9,75]]}
[]
[]
[]
[]
[]
[null,null,null,null,null,null,null,null,null,null,null,null,null,null,null,null,null,null,null,null,null,null,null,null,null,null,null,null,null,null,null,null,null,null,null,null,null,null,null,null,null,null,null,null,null,null,null,null,null,null,null,null,null,null,null,null,null,null,"УТВЕРЖДАЮ"]
[null,null,null,null,null,null,null,null,null,null,null,null,null,null,null,null,null,null,null,null,null,null,null,null,null,null,null,null,null,null,null,null,null,null,null,null,null,null,null,null,null,null,null,null,null,null,null,null,null,null,null,null,null,null,null,null,null,null,"Начальник Управления образования"]
[null,null,null,null,null,null,null,null,null,null,null,null,null,null,null,null,null,null,null,null,null,null,null,null,null,null,null,null,null,null,null,null,null,null,null,null,null,null,null,null,null,null,null,null,null,null,null,null,null,null,null,null,null,null,null,null,null,null,"(наименование должности лица,\nутверждающего документ)"]
[null,null,null,null,null,null,null,null,null,null,null,null,null,null,null,null,null,null,null,null,null,null,null,null,null,null,null,null,null,null,null,null,null,null,null,null,null,null,null,null,null,null,null,null,null,null,null,null,null,null,null,null,null,null,null,null,null,null,null,null,null,null,null,null,null,null,null,null,null,null,null,null,null,null,null,null,null,"Л.И. Саулина"]
[null,null,null,null,null,null,null,null,null,null,null,null,null,null,null,null,null,null,null,null,null,null,null,null,null,null,null,null,null,null,null,null,null,null,null,null,null,null,null,null,null,null,null,null,null,null,null,null,null,null,null,null,null,null,null,null,null,null,"(подпись)",null,null,null,null,null,null,null,null,null,null,null,null,null,null,null,null,null,null,"(расшифровка подписи)"]
[]
[null,null,null,null,null,null,null,null,null,null,null,null,null,null,null,null,null,null,null,null,null,null,null,null,null,null,null,null,null,null,null,null,null,null,null,null,null,null,null,null,null,null,null,null,null,null,null,null,null,null,null,null,null,null,null,null,null,null,null,null,null,null,null,null,"\"",null,"01",null,null,null,"\"",null,null,"января",null,null,null,null,null,null,null,null,null,null,null,null,null,null,20,null,null,null,"17",null,null,null," г."]
[]
[]
["План\nфинансово-хозяйственной деятельности"]
[null,null,null,null,null,null,null,null,null,null,null,null,null,null,null,null,null,null,null,null,null,null,null,null,null,null,null,null,null,"на 20",null,null,null,null,null,null,"17",null,null,null," год и плановый период",null,null,null,null,null,null,null,null,null,null,null,null,null,null,null,null,null,null,null,null,null,null,null,null,null,null,null,"18-19"]
[]
[null,null,null,null,null,null,null,null,null,null,null,null,null,null,null,null,null,null,null,null,null,null,null,null,null,null,null,null,null,null,null,null,null,null,null,null,"\"",null,"01",null,null,null,"\"",null,null,"января",null,null,null,null,null,null,null,null,null,null,null,null,null,null,20,null,null,null,"17",null,null,null," г."]
[]
[null,null,null,null,null,null,null,null,null,null,null,null,null,null,null,null,null,null,null,null,null,null,null,null,null,null,null,null,null,null,null,null,null,null,null,null,null,null,null,null,null,null,null,null,null,null,null,null,null,null,null,null,null,null,null,null,null,null,null,null,null,null,null,null,null,null,null,null,null,null,null,null,null,null,null,null,null,null,null,null,null,null,null,null,null,null,null,null,null,"КОДЫ"]
[null,null,null,null,null,null,null,null,null,null,null,null,null,null,null,null,null,null,null,null,null,null,null,null,null,null,null,null,null,null,null,null,null,null,null,null,null,null,null,null,null,null,null,null,null,null,null,null,null,null,null,null,null,null,null,null,null,null,null,null,null,null,null,null,null,null,null,null,null,null,null,null,null,null,null,null,null,null,null,null,null,null,null,null,null,null,null,"Форма по КФД"]
[null,null,null,null,null,null,null,null,null,null,null,null,null,null,null,null,null,null,null,null,null,null,null,null,null,null,null,null,null,null,null,null,null,null,null,null,null,null,null,null,null,null,null,null,null,null,null,null,null,null,null,null,null,null,null,null,null,null,null,null,null,null,null,null,null,null,null,null,null,null,null,null,null,null,null,null,null,null,null,null,null,null,null,null,null,null,null,"Дата",null,"01.01.2017"]
[]
[]
["Наименование муниципального учреждения (подразделения)",null,null,null,null,null,null,null,null,null,null,null,null,null,null,null,null,null,null,null,null,null,null,null,null,null,null,null,null,null,null,null,null,null,null,null,null,"МБДОУ \"Солнышко\"",null,null,null,null,null,null,null,null,null,null,null,null,null,null,null,null,null,null,null,null,null,null,null,null,null,null,null,null,null,null,null,null,null,null,null,null,null,null,null,null,null,null,null,null,null,null,null,null,null,"по ОКПО",null,"44878413"]
[]
[]
[]
["ИНН/КПП",null,null,null,null,null,null,null,null,null,null,null,null,null,null,null,null,null,null,null,null,null,null,null,null,null,null,null,null,null,null,null,null,null,null,null,null,"5826101322/582601001"]
[]
["Единица измерения: руб.",null,null,null,null,null,null,null,null,null,null,null,null,null,null,null,null,null,null,null,null,null,null,null,null,null,null,null,null,null,null,null,null,null,null,null,null,null,null,null,null,null,null,null,null,null,null,null,null,null,null,null,null,null,null,null,null,null,null,null,null,null,null,null,null,null,null,null,null,null,null,null,null,null,null,null,null,null,null,null,null,null,null,null,null,null,null,"по ОКЕИ",null,"251"]
[]
["Наименование органа, осуществляющего функции\nи полномочия учредителя",null,null,null,null,null,null,null,null,null,null,null,null,null,null,null,null,null,null,null,null,null,null,null,null,null,null,null,null,null,null,null,null,null,null,null,null,null,null,null,null,null,null,null,null,null,null,null,null,null,null,null,null,null,null,"Управление образования администрации Никольского района Пензенской области"]
[]
["Адрес фактического местонахождения муниципального учреждения (подразделения)",null,null,null,null,null,null,null,null,null,null,null,null,null,null,null,null,null,null,null,null,null,null,null,null,null,null,null,null,null,null,null,null,null,null,null,null,null,null,null,null,null,null,null,null,null,null,null,null,null,null,null,null,null,null,"442680 Пензенская область, Никольский р-он, с. Маис, ул. Центральная, д.25"]
[]
[" ","Сведения о деятельности муниципального учреждения"]
[]
["1. Цели деятельности Учреждения в соответствии с  нормативными правовыми актами и уставом Учреждения."]
["Охрана жизни и укрепление физического , психического здоровья детей, обеспечение позновательно-речевого, социально-личностного, художественно-эстетического и физического развития детей; воспитание с учетом возрастных категорий детей гражданственности, уважения к правам и свободам человека. любви к окружающей природе. родине, семье; взаимодействие с семьей для обеспечения полноценного развития ребенка; оказанте консультативной и методической помощи родителям(законным представителям) по вопросам воспитания, обучения и развития детей. "]
["2. Виды деятельности Учреждения , относящиеся к его основным видам деятельности в соответствии с уставом Учреждения."]
["предоставление дошкольного образования, воспитания, обучения и развития детей"]
["3. Перечень услуг (работ), относящихся в соответствии с уставом  к основным видам деятельности Учреждения , предоставление которых для физических и юридических лиц осуществляется в том числе за плату."]
[]
["4. Общая балансовая стоимость недвижимого муниципального имущества на дату составления Плана, в том числе:"]
["стоимость имущества, закрепленного собственником имущества за учреждением на праве оперативного управления;"]
["стоимость имущества, приобретенного учреждением за счет выделенных собственником имущества учреждения средств;"]
["стоимость имущества, приобретенного учреждением за счет доходов, полученных полученных от иной приносящей доход деятельности."]
[]
["5. Общая балансовая стоимость движимого муниципального имущества на дату составления Плана, в том числе:"]
[" балансовая стоимость особо ценного движимого имущества."]

{"sheet":"стр.3_5","index":1,"n_rows":23,"n_cols":87,"rows_kept":23,"cut":false,"hidden":false,"merged":[[22,86,22,104],[16,0,16,6],[16,8,16,85],[22,0,22,6],[18,0,18,6],[18,8,18,85],[18,86,18,104],[21,0,21,6],[21,8,21,85],[21,86,21,104],[22,8,22,85],[20,0,20,6],[20,8,20,85],[20,86,20,104],[13,0,13,6],[13,8,13,85],[13,86,13,104],[14,0,14,6],[14,8,14,85],[14,86,14,104],[11,86,11,104],[12,0,12,6],[12,8,12,85],[12,86,12,104],[11,0,11,6],[11,8,11,85],[9,0,9,6],[9,8,9,85],[9,86,9,104],[10,0,10,6],[10,8,10,85],[10,86,10,104],[6,0,6,6],[6,8,6,85],[6,86,6,104],[7,86,7,104],[8,0,8,6],[8,8,8,85],[8,86,8,104],[7,0,7,6],[7,8,7,85],[5,0,5,6],[5,8,5,85],[5,86,5,104],[3,0,3,6],[0,1,0,103],[1,32,1,35],[1,36,1,61],[1,62,1,65],[1,66,1,69],[1,70,1,72],[3,7,3,85],[3,86,3,104],[4,0,4,6],[4,7,4,85],[4,86,4,104],[15,8,15,85],[15,86,15,104],[19,0,19,6],[19,8,19,85],[19,86,19,104],[16,86,16,104],[17,8,17,85],[17,86,17,104],[15,0,15,6],[17,0,17,6]]}
[null,"I. Показатели финансового состояния Учреждения"]
[null,null,null,null,null,null,null,null,null,null,null,null,null,null,null,null,null,null,null,null,null,null,null,null,null,null,null,null,null,null,null,null,"на ",null,null,null,"01 января ",null,null,null,null,null,null,null,null,null,null,null,null,null,null,null,null,null,null,null,null,null,null,null,null,null,20,null,null,null,"17",null,null,null," г."]
[null,null,null,null,null,null,null,null,null,null,null,null,null,null,null,null,null,null,null,null,null,null,null,null,null,null,null,null,null,null,null,null,null,null,null,null,null,null,null,null,null,null,null,null,null,null,null,null,null,null,null,null,null,null,null,null,null,null,null,null,null,null,null,null,null,null,null,null,null,null,null,null,null,null,null,null,null,"таблица 1"]
["№\nп/п",null,null,null,null,null,null,"Наименование показателя",null,null,null,null,null,null,null,null,null,null,null,null,null,null,null,null,null,null,null,null,null,null,null,null,null,null,null,null,null,null,null,null,null,null,null,null,null,null,null,null,null,null,null,null,null,null,null,null,null,null,null,null,null,null,null,null,null,null,null,null,null,null,null,null,null,null,null,null,null,null,null,null,null,null,null,null,null,null,"Сумма,\nтыс. руб."]
[1,null,null,null,null,null,null,2,null,null,null,null,null,null,null,null,null,null,null,null,null,null,null,null,null,null,null,null,null,null,null,null,null,null,null,null,null,null,null,null,null,null,null,null,null,null,null,null,null,null,null,null,null,null,null,null,null,null,null,null,null,null,null,null,null,null,null,null,null,null,null,null,null,null,null,null,null,null,null,null,null,null,null,null,null,null,3]
[null,null,null,null,null,null,null,null,"I. Нефинансовые активы, всего:"]
[null,null,null,null,null,null,null,null,"из них:"]
[null,null,null,null,null,null,null,null,"1.1. Общая балансовая стоимость недвижимого муниципального имущества, всего"]
[null,null,null,null,null,null,null,null,"в том числе: остаточная стоимость"]
[null,null,null,null,null,null,null,null,"1.2. Общая балансовая стоимость особо ценного движимого имущества"]
[null,null,null,null,null,null,null,null,"в том числе: остаточная стоимость"]
[null,null,null,null,null,null,null,null,"II. Финансовые активы, всего"]
[null,null,null,null,null,null,null,null,"из них:"]
[null,null,null,null,null,null,null,null,"2.1. Денежные средства учреждения, всего"]
[null,null,null,null,null,null,null,null,"в том числе: денежные средства учреждения на счетах"]
[null,null,null,null,null,null,null,null,"2.2. Денежные средства учреждения, размещенные на депозиты в \nкредитной организации"]
[null,null,null,null,null,null,null,null,"2.3. Иные финансовые инструменты"]
[null,null,null,null,null,null,null,null,"2.4. Дебиторская задолженность по доходам"]
[null,null,null,null,null,null,null,null,"2.5. Дебиторская задолженность по расходам"]
[null,null,null,null,null,null,null,null,"III. Обязательства, всего"]
[null,null,null,null,null,null,null,null,"из них:\n3.1. Долговые обязательства"]
[null,null,null,null,null,null,null,null,"3.2. Кредиторская задолженность:"]
[null,null,null,null,null,null,null,null,"в том числе: просроченная кредиторская задолженность"]

{"sheet":"стр.6_11","index":2,"n_rows":81,"n_cols":140,"rows_kept":81,"cut":false,"hidden":false,"merged":[[46,139,46,154],[66,139,66,154],[66,1,66,20],[66,21,66,29],[66,30,66,42],[66,43,66,58],[66,59,66,74],[66,75,66,90],[66,91,66,106],[66,107,66,122],[66,123,66,138],[64,123,64,138],[65,123,65,138],[64,139,64,154],[65,139,65,154],[64,43,64,58],[65,43,65,58],[64,59,64,74],[64,107,64,122],[65,107,65,122],[65,75,65,90],[65,91,65,106],[64,75,64,90],[64,91,64,106],[67,123,67,138],[68,123,68,138],[71,123,71,138],[67,139,67,154],[68,139,68,154],[71,139,71,154],[67,107,67,122],[68,91,68,106],[71,91,71,106],[68,107,68,122],[71,107,71,122],[69,107,69,122],[69,123,69,138],[69,139,69,154],[67,59,67,74],[67,75,67,90],[68,59,68,74],[68,75,68,90],[71,1,71,20],[71,59,71,74],[71,75,71,90],[67,91,67,106],[67,21,67,29],[67,30,67,42],[67,43,67,58],[71,21,71,29],[71,30,71,42],[71,43,71,58],[68,21,68,29],[68,30,68,42],[68,43,68,58],[67,1,67,20],[68,1,68,20],[69,91,69,106],[70,0,70,20],[70,21,70,29],[70,30,70,42],[70,43,70,58],[62,75,62,90],[62,91,62,106],[62,107,62,122],[63,75,63,90],[63,91,63,106],[63,107,63,122],[60,123,60,138],[60,139,60,154],[61,123,61,138],[62,123,62,138],[61,139,61,154],[62,139,62,154],[63,123,63,138],[63,139,63,154],[60,75,60,90],[60,91,60,106],[63,21,63,29],[65,1,65,20],[56,139,56,154],[57,139,57,154],[58,139,58,154],[58,1,58,20],[58,21,58,29],[58,30,58,42],[58,43,58,58],[58,59,58,74],[58,75,58,90],[57,107,57,122],[58,91,58,106],[62,1,62,20],[63,1,63,20],[60,30,60,42],[60,43,60,58],[60,59,60,74],[61,30,61,42],[61,43,61,58],[61,59,61,74],[60,1,60,20],[60,21,60,29],[61,1,61,20],[58,123,58,138],[55,107,55,122],[55,123,55,138],[56,107,56,122],[58,107,58,122],[54,123,54,138],[64,1,64,20],[61,21,61,29],[60,107,60,122],[61,75,61,90],[61,91,61,106],[61,107,61,122],[64,21,64,29],[64,30,64,42],[62,43,62,58],[62,59,62,74],[63,43,63,58],[63,59,63,74],[54,59,54,74],[55,59,55,74],[56,59,56,74],[57,59,57,74],[54,43,54,58],[55,43,55,58],[54,139,54,154],[54,75,54,90],[55,75,55,90],[56,75,56,90],[57,75,57,90],[55,91,55,106],[56,91,56,106],[57,91,57,106],[55,139,55,154],[54,91,54,106],[54,107,54,122],[56,123,56,138],[57,123,57,138],[57,43,57,58],[56,43,56,58],[54,30,54,42],[55,30,55,42],[56,30,56,42],[57,30,57,42],[54,21,54,29],[55,21,55,29],[56,21,56,29],[57,21,57,29],[54,1,54,20],[55,1,55,20],[56,1,56,20],[57,1,57,20],[50,139,50,154],[51,139,51,154],[52,139,52,154],[53,139,53,154],[51,123,51,138],[50,123,50,138],[52,123,52,138],[53,123,53,138],[50,107,50,122],[51,107,51,122],[52,107,52,122],[53,107,53,122],[51,91,51,106],[52,91,52,106],[53,91,53,106],[50,59,50,74],[52,59,52,74],[53,59,53,74],[50,75,50,90],[51,75,51,90],[52,75,52,90],[53,75,53,90],[51,43,51,58],[52,43,52,58],[53,43,53,58],[51,59,51,74],[52,1,52,20],[53,1,53,20],[38,139,38,154],[50,43,50,58],[44,139,44,154],[45,139,45,154],[46,75,46,90],[50,91,50,106],[44,75,44,90],[45,75,45,90],[44,107,44,122],[50,1,50,20],[51,1,51,20],[50,30,50,42],[51,30,51,42],[52,30,52,42],[53,30,53,42],[50,21,50,29],[51,21,51,29],[52,21,52,29],[53,21,53,29],[46,107,46,122],[44,123,44,138],[45,123,45,138],[38,1,38,20],[38,21,38,29],[38,30,38,42],[38,43,38,58],[38,59,38,74],[38,75,38,90],[38,91,38,106],[38,107,38,122],[38,123,38,138],[46,123,46,138],[44,91,44,106],[45,91,45,106],[46,91,46,106],[40,123,40,138],[46,1,46,20],[44,21,44,29],[45,21,45,29],[46,21,46,29],[34,123,34,138],[46,30,46,42],[44,43,44,58],[45,43,45,58],[44,59,44,74],[45,59,45,74],[46,43,46,58],[46,59,46,74],[42,75,42,90],[34,30,34,42],[34,43,34,58],[34,59,34,74],[34,75,34,90],[34,107,34,122],[36,91,36,106],[36,107,36,122],[35,123,35,138],[34,91,34,106],[36,123,36,138],[36,139,36,154],[44,1,44,20],[45,1,45,20],[44,30,44,42],[45,30,45,42],[36,21,36,29],[36,30,36,42],[36,43,36,58],[36,59,36,74],[36,75,36,90],[45,107,45,122],[43,30,43,42],[43,43,43,58],[43,59,43,74],[42,1,42,20],[42,21,42,29],[42,30,42,42],[42,43,42,58],[42,59,42,74],[43,139,43,154],[42,123,42,138],[42,139,42,154],[40,139,40,154],[39,123,39,138],[39,139,39,154],[40,91,40,106],[40,107,40,122],[37,123,37,138],[37,139,37,154],[43,107,43,122],[41,123,41,138],[42,91,42,106],[42,107,42,122],[43,123,43,138],[23,123,23,138],[24,123,24,138],[25,123,25,138],[23,139,23,154],[24,139,24,154],[25,139,25,154],[23,91,23,106],[24,91,24,106],[25,91,25,106],[23,107,23,122],[24,107,24,122],[25,107,25,122],[23,59,23,74],[24,59,24,74],[25,59,25,74],[23,75,23,90],[24,75,24,90],[25,75,25,90],[24,30,24,42],[25,30,25,42],[23,43,23,58],[24,43,24,58],[25,43,25,58],[15,123,15,138],[15,139,15,154],[15,43,15,58],[16,123,16,138],[17,123,17,138],[16,59,16,74],[17,59,17,74],[18,59,18,74],[16,139,16,154],[18,123,18,138],[17,139,17,154],[18,139,18,154],[16,91,16,106],[17,91,17,106],[18,91,18,106],[16,107,16,122],[17,107,17,122],[18,107,18,122],[16,75,16,90],[17,75,17,90],[18,75,18,90],[25,1,25,20],[23,1,23,20],[24,1,24,20],[23,21,23,29],[24,21,24,29],[25,21,25,29],[23,30,23,42],[15,91,15,106],[79,107,79,122],[78,91,78,106],[78,107,78,122],[77,75,77,90],[77,107,77,122],[76,91,76,106],[74,75,74,90],[74,91,74,106],[72,75,72,90],[72,91,72,106],[48,75,48,90],[48,91,48,106],[43,75,43,90],[43,91,43,106],[43,1,43,20],[43,21,43,29],[80,123,80,138],[80,139,80,154],[79,123,79,138],[79,91,79,106],[80,107,80,122],[78,139,78,154],[79,139,79,154],[29,1,29,20],[1,95,1,97],[80,75,80,90],[80,91,80,106],[79,59,79,74],[79,75,79,90],[77,91,77,106],[80,59,80,74],[15,59,15,74],[15,75,15,90],[77,139,77,154],[78,1,78,20],[78,21,78,29],[78,30,78,42],[78,43,78,58],[78,59,78,74],[78,75,78,90],[80,1,80,20],[80,21,80,29],[80,30,80,42],[80,43,80,58],[79,1,79,20],[79,21,79,29],[79,30,79,42],[79,43,79,58],[76,75,76,90],[78,123,78,138],[76,123,76,138],[76,139,76,154],[77,1,77,20],[77,21,77,29],[77,30,77,42],[77,43,77,58],[77,59,77,74],[75,75,75,90],[75,91,75,106],[77,123,77,138],[75,123,75,138],[75,139,75,154],[76,1,76,20],[76,21,76,29],[76,30,76,42],[76,43,76,58],[76,59,76,74],[76,107,76,122],[74,123,74,138],[74,139,74,154],[75,1,75,20],[75,21,75,29],[75,30,75,42],[75,43,75,58],[75,59,75,74],[73,75,73,90],[73,91,73,106],[75,107,75,122],[73,123,73,138],[73,139,73,154],[74,1,74,20],[74,21,74,29],[74,30,74,42],[74,43,74,58],[74,59,74,74],[74,107,74,122],[72,123,72,138],[72,139,72,154],[73,1,73,20],[73,21,73,29],[73,30,73,42],[73,43,73,58],[73,59,73,74],[49,75,49,90],[49,91,49,106],[73,107,73,122],[49,123,49,138],[49,139,49,154],[72,1,72,20],[72,21,72,29],[72,30,72,42],[72,43,72,58],[72,59,72,74],[72,107,72,122],[69,0,69,20],[69,21,69,29],[69,30,69,42],[69,43,69,58],[69,59,69,74],[69,75,69,90],[48,123,48,138],[48,139,48,154],[49,1,49,20],[49,21,49,29],[49,30,49,42],[49,43,49,58],[49,59,49,74],[47,75,47,90],[47,91,47,106],[49,107,49,122],[47,123,47,138],[47,139,47,154],[48,1,48,20],[48,21,48,29],[48,30,48,42],[48,43,48,58],[48,59,48,74],[48,107,48,122],[47,1,47,20],[47,21,47,29],[47,30,47,42],[47,43,47,58],[47,59,47,74],[47,107,47,122],[41,1,41,20],[41,21,41,29],[41,30,41,42],[41,43,41,58],[41,59,41,74],[41,75,41,90],[41,91,41,106],[41,107,41,122],[41,139,41,154],[40,1,40,20],[40,21,40,29],[40,30,40,42],[40,43,40,58],[40,59,40,74],[40,75,40,90],[35,139,35,154],[39,1,39,20],[39,21,39,29],[39,30,39,42],[39,43,39,58],[39,59,39,74],[39,75,39,90],[39,91,39,106],[39,107,39,122],[36,1,36,20],[37,0,37,20],[37,21,37,29],[37,30,37,42],[37,43,37,58],[37,59,37,74],[37,75,37,90],[37,91,37,106],[37,107,37,122],[31,139,31,154],[35,1,35,20],[35,21,35,29],[35,30,35,42],[35,43,35,58],[35,59,35,74],[35,75,35,90],[35,91,35,106],[35,107,35,122],[33,0,33,20],[33,21,33,29],[33,30,33,42],[33,43,33,58],[33,59,33,74],[33,75,33,90],[33,91,33,106],[33,107,33,122],[33,123,33,138],[33,139,33,154],[32,123,32,138],[32,139,32,154],[34,139,34,154],[34,1,34,20],[34,21,34,29],[29,139,29,154],[30,1,30,20],[30,21,30,29],[30,30,30,42],[30,43,30,58],[30,59,30,74],[30,75,30,90],[30,91,30,106],[30,107,30,122],[29,21,29,29],[29,30,29,42],[29,43,29,58],[29,59,29,74],[29,75,29,90],[29,91,29,106],[29,107,29,122],[30,123,30,138],[30,139,30,154],[32,1,32,20],[32,21,32,29],[32,30,32,42],[32,43,32,58],[32,59,32,74],[32,75,32,90],[32,91,32,106],[32,107,32,122],[29,123,29,138],[31,1,31,20],[31,21,31,29],[31,30,31,42],[31,43,31,58],[31,59,31,74],[31,75,31,90],[31,91,31,106],[31,107,31,122],[31,123,31,138],[28,139,28,154],[28,1,28,20],[28,21,28,29],[28,30,28,42],[28,43,28,58],[28,59,28,74],[28,75,28,90],[28,91,28,106],[28,107,28,122],[28,123,28,138],[26,139,26,154],[27,1,27,20],[27,21,27,29],[27,30,27,42],[27,43,27,58],[27,59,27,74],[27,75,27,90],[27,91,27,106],[27,107,27,122],[27,123,27,138],[27,139,27,154],[26,1,26,20],[26,21,26,29],[26,30,26,42],[26,43,26,58],[26,59,26,74],[26,75,26,90],[26,91,26,106],[26,107,26,122],[26,123,26,138],[21,139,21,154],[22,1,22,20],[22,21,22,29],[22,30,22,42],[22,43,22,58],[22,59,22,74],[22,75,22,90],[22,91,22,106],[22,107,22,122],[22,123,22,138],[22,139,22,154],[21,1,21,20],[21,21,21,29],[21,30,21,42],[21,43,21,58],[21,59,21,74],[21,75,21,90],[21,91,21,106],[21,107,21,122],[21,123,21,138],[19,139,19,154],[20,1,20,20],[20,21,20,29],[20,30,20,42],[20,43,20,58],[20,59,20,74],[20,75,20,90],[20,91,20,106],[20,107,20,122],[20,123,20,138],[20,139,20,154],[19,1,19,20],[15,1,15,20],[19,21,19,29],[19,30,19,42],[19,43,19,58],[19,59,19,74],[19,75,19,90],[19,91,19,106],[19,107,19,122],[19,123,19,138],[16,1,16,20],[17,1,17,20],[18,1,18,20],[16,21,16,29],[17,21,17,29],[18,21,18,29],[15,21,15,29],[15,30,15,42],[16,30,16,42],[17,30,17,42],[18,30,18,42],[16,43,16,58],[17,43,17,58],[18,43,18,58],[15,107,15,122],[12,139,12,154],[13,139,13,154],[14,1,14,20],[14,21,14,29],[14,30,14,42],[14,43,14,58],[14,59,14,74],[14,75,14,90],[14,91,14,106],[14,107,14,122],[14,123,14,138],[14,139,14,154],[13,1,13,20],[13,21,13,29],[13,30,13,42],[13,43,13,58],[13,59,13,74],[13,75,13,90],[13,91,13,106],[13,107,13,122],[13,123,13,138],[12,1,12,20],[12,21,12,29],[12,30,12,42],[12,43,12,58],[12,59,12,74],[12,75,12,90],[12,91,12,106],[12,107,12,122],[12,123,12,138],[10,1,10,20],[10,21,10,29],[10,30,10,42],[10,43,10,58],[10,59,10,74],[10,75,10,90],[10,91,10,106],[10,107,10,122],[10,123,10,138],[11,1,11,20],[11,21,11,29],[11,30,11,42],[11,43,11,58],[11,59,11,74],[11,75,11,90],[11,91,11,106],[11,107,11,122],[11,123,11,138],[7,0,7,20],[7,21,7,29],[7,30,7,42],[7,43,7,58],[8,123,8,138],[8,139,8,154],[9,1,9,20],[9,21,9,29],[9,30,9,42],[9,43,9,58],[9,59,9,74],[9,75,9,90],[9,91,9,106],[9,107,9,122],[9,123,9,138],[9,139,9,154],[8,43,8,58],[8,59,8,74],[8,75,8,90],[8,91,8,106],[8,107,8,122],[7,59,7,74],[7,75,7,90],[7,91,7,106],[7,107,7,122],[59,0,59,20],[0,1,0,153],[3,0,6,20],[3,21,6,29],[3,30,6,42],[3,43,3,154],[4,43,6,58],[1,57,1,60],[1,61,1,86],[1,87,1,90],[1,91,1,94],[4,59,4,154],[5,59,6,74],[5,75,6,90],[5,91,6,106],[5,107,6,122],[5,123,5,154],[6,123,6,138],[6,139,6,154],[7,123,7,138],[7,139,7,154],[8,1,8,20],[8,21,8,29],[8,30,8,42],[70,59,70,74],[70,75,70,90],[70,91,70,106],[70,107,70,122],[70,123,70,138],[70,139,70,154],[59,21,59,29],[59,30,59,42],[59,43,59,58],[59,59,59,74],[59,75,59,90],[59,91,59,106],[59,107,59,122],[59,123,59,138],[59,139,59,154],[65,59,65,74],[65,21,65,29],[65,30,65,42],[62,30,62,42],[63,30,63,42],[62,21,62,29],[10,139,10,154],[11,139,11,154]]}
[null,"II. Показатели по поступлениям и выплатам Учреждения "]
[null,null,null,null,null,null,null,null,null,null,null,null,null,null,null,null,null,null,null,null,null,null,null,null,null,null,null,null,null,null,null,null,null,null,null,null,null,null,null,null,null,null,null,null,null,null,null,null,null,null,null,null,null,null,null,null,null,"на ",null,null,null,"01 января",null,null,null,null,null,null,null,null,null,null,null,null,null,null,null,null,null,null,null,null,null,null,null,null,null,20,null,null,null,"17",null,null,null," г."]
[null,null,null,null,null,null,null,null,null,null,null,null,null,null,null,null,null,null,null,null,null,null,null,null,null,null,null,null,null,null,null,null,null,null,null,null,null,null,null,null,null,null,null,null,null,null,null,null,null,null,null,null,null,null,null,null,null,null,null,null,null,null,null,null,null,null,null,null,null,null,null,null,null,null,null,null,null,null,null,null,null,null,null,null,null,null,null,null,null,null,null,null,null,null,null,null,null,null,null,null,null,null,null,null,null,null,null,null,null,null,null,null,null,null,null,null,null,null,null,null,"таблица 2"]
["Наименование показателя",null,null,null,null,null,null,null,null,null,null,null,null,null,null,null,null,null,null,null,null,"Код строки",null,null,null,null,null,null,null,null,"Код по бюджетной классификации Российской Федерации",null,null,null,null,null,null,null,null,null,null,null,null,"Объем финансового обеспечения, руб. (с точностью до двух знаков после запятой - 0,00)"]
[null,null,null,null,null,null,null,null,null,null,null,null,null,null,null,null,null,null,null,null,null,null,null,null,null,null,null,null,null,null,null,null,null,null,null,null,null,null,null,null,null,null,null,"всего",null,null,null,null,null,null,null,null,null,null,null,null,null,null,null,"в том числе:"]
[null,null,null,null,null,null,null,null,null,null,null,null,null,null,null,null,null,null,null,null,null,null,null,null,null,null,null,null,null,null,null,null,null,null,null,null,null,null,null,null,null,null,null,null,null,null,null,null,null,null,null,null,null,null,null,null,null,null,null,"Субсидия на финансовое обеспечение выполнения государственного задания ",null,null,null,null,null,null,null,null,null,null,null,null,null,null,null,"Субсидии, представляемые\nв соответствии с абзацем вторым пункта 1 статьи 78.1 Бюджетного кодекса Российской Федерации",null,null,null,null,null,null,null,null,null,null,null,null,null,null,null,"Субсидии\nна осуществление\nкапитальных вложений",null,null,null,null,null,null,null,null,null,null,null,null,null,null,null,"Средства обязательного медицинского страхования",null,null,null,null,null,null,null,null,null,null,null,null,null,null,null,"Поступления от оказания\nуслуг (выполнения работ)\nна платной основе\nи от иной приносящей\nдоход деятельности"]
[null,null,null,null,null,null,null,null,null,null,null,null,null,null,null,null,null,null,null,null,null,null,null,null,null,null,null,null,null,null,null,null,null,null,null,null,null,null,null,null,null,null,null,null,null,null,null,null,null,null,null,null,null,null,null,null,null,null,null,null,null,null,null,null,null,null,null,null,null,null,null,null,null,null,null,null,null,null,null,null,null,null,null,null,null,null,null,null,null,null,null,null,null,null,null,null,null,null,null,null,null,null,null,null,null,null,null,null,null,null,null,null,null,null,null,null,null,null,null,null,null,null,null,"всего",null,null,null,null,null,null,null,null,null,null,null,null,null,null,null,"из них\nгранты"]
[1,null,null,null,null,null,null,null,null,null,null,null,null,null,null,null,null,null,null,null,null,2,null,null,null,null,null,null,null,null,3,null,null,null,null,null,null,null,null,null,null,null,null,4,null,null,null,null,null,null,null,null,null,null,null,null,null,null,null,5,null,null,null,null,null,null,null,null,null,null,null,null,null,null,null,6,null,null,null,null,null,null,null,null,null,null,null,null,null,null,null,7,null,null,null,null,null,null,null,null,null,null,null,null,null,null,null,8,null,null,null,null,null,null,null,null,null,null,null,null,null,null,null,9,null,null,null,null,null,null,null,null,null,null,null,null,null,null,null,10]
[null,"Поступления от доходов, всего:",null,null,null,null,null,null,null,null,null,null,null,null,null,null,null,null,null,null,null,"100",null,null,null,null,null,null,null,null,"Х",null,null,null,null,null,null,null,null,null,null,null,null,{"$f":"SUM(BH9,BX9,DT9)","v":4195263},null,null,null,null,null,null,null,null,null,null,null,null,null,null,null,{"$f":"SUM(BH12,BH13)","v":3149366},null,null,null,null,null,null,null,null,null,null,null,null,null,null,null,null,null,null,null,null,null,null,null,null,null,null,null,null,null,null,null,null,null,null,null,null,null,null,null,null,null,null,null,null,null,null,null,null,null,null,null,null,null,null,null,null,null,null,null,null,null,null,null,{"$f":"DT13","v":1045897}]
[null,"в том числе:\nдоходы от собственности",null,null,null,null,null,null,null,null,null,null,null,null,null,null,null,null,null,null,null,"110",null,null,null,null,null,null,null,null,"120",null,null,null,null,null,null,null,null,null,null,null,null,0,null,null,null,null,null,null,null,null,null,null,null,null,null,null,null,"Х",null,null,null,null,null,null,null,null,null,null,null,null,null,null,null,"Х",null,null,null,null,null,null,null,null,null,null,null,null,null,null,null,"Х",null,null,null,null,null,null,null,null,null,null,null,null,null,null,null,"Х",null,null,null,null,null,null,null,null,null,null,null,null,null,null,null,0,null,null,null,null,null,null,null,null,null,null,null,null,null,null,null,"Х"]
[null,"из них:",null,null,null,null,null,null,null,null,null,null,null,null,null,null,null,null,null,null,null,"Х"]
[null,"1.от аренды",null,null,null,null,null,null,null,null,null,null,null,null,null,null,null,null,null,null,null,null,null,null,null,null,null,null,null,null,null,null,null,null,null,null,null,null,null,null,null,null,null,0,null,null,null,null,null,null,null,null,null,null,null,null,null,null,null,null,null,null,null,null,null,null,null,null,null,null,null,null,null,null,null,null,null,null,null,null,null,null,null,null,null,null,null,null,null,null,null,null,null,null,null,null,null,null,null,null,null,null,null,null,null,null,null,null,null,null,null,null,null,null,null,null,null,null,null,null,null,null,null,0]
[null,"Доходы от оказания услуг, работ",null,null,null,null,null,null,null,null,null,null,null,null,null,null,null,null,null,null,null,"120",null,null,null,null,null,null,null,null,"130",null,null,null,null,null,null,null,null,null,null,null,null,{"$f":"SUM(BH13,DT13)","v":4195263},null,null,null,null,null,null,null,null,null,null,null,null,null,null,null,{"$f":"SUM(BH15,BH16,BH17,BH18,BH19,BH20)","v":3149366},null,null,null,null,null,null,null,null,null,null,null,null,null,null,null,"Х",null,null,null,null,null,null,null,null,null,null,null,null,null,null,null,"Х",null,null,null,null,null,null,null,null,null,null,null,null,null,null,null,null,null,null,null,null,null,null,null,null,null,null,null,null,null,null,null,{"$f":"SUM(DT15:DT20)","v":1045897}]
[null,"из них",null,null,null,null,null,null,null,null,null,null,null,null,null,null,null,null,null,null,null,"Х"]
[null,"1.субвенция",null,null,null,null,null,null,null,null,null,null,null,null,null,null,null,null,null,null,null,null,null,null,null,null,null,null,null,null,null,null,null,null,null,null,null,null,null,null,null,null,null,{"$f":"SUM(BH15,DT15)","v":1958520},null,null,null,null,null,null,null,null,null,null,null,null,null,null,null,1958520]
[null,"2. муниципальный бюджет",null,null,null,null,null,null,null,null,null,null,null,null,null,null,null,null,null,null,null,null,null,null,null,null,null,null,null,null,null,null,null,null,null,null,null,null,null,null,null,null,null,1190846,null,null,null,null,null,null,null,null,null,null,null,null,null,null,null,1190846,null,null,null,null,null,null,null,null,null,null,null,null,null,null,null,null,null,null,null,null,null,null,null,null,null,null,null,null,null,null,null,null,null,null,null,null,null,null,null,null,null,null,null,null,null,null,null,null,null,null,null,null,null,null,null,null,null,null,null,null,null,null,null,{"$f":"SUM(BX16)","v":0}]
[null,"3.платные услуги",null,null,null,null,null,null,null,null,null,null,null,null,null,null,null,null,null,null,null,null,null,null,null,null,null,null,null,null,null,null,null,null,null,null,null,null,null,null,null,null,null,0]
[null,"4. возмещение ком. услуг",null,null,null,null,null,null,null,null,null,null,null,null,null,null,null,null,null,null,null,null,null,null,null,null,null,null,null,null,null,null,null,null,null,null,null,null,null,null,null,null,null,268143,null,null,null,null,null,null,null,null,null,null,null,null,null,null,null,null,null,null,null,null,null,null,null,null,null,null,null,null,null,null,null,null,null,null,null,null,null,null,null,null,null,null,null,null,null,null,null,null,null,null,null,null,null,null,null,null,null,null,null,null,null,null,null,null,null,null,null,null,null,null,null,null,null,null,null,null,null,null,null,268143]
[null,"5. род. плата ",null,null,null,null,null,null,null,null,null,null,null,null,null,null,null,null,null,null,null,null,null,null,null,null,null,null,null,null,null,null,null,null,null,null,null,null,null,null,null,null,null,777754,null,null,null,null,null,null,null,null,null,null,null,null,null,null,null,null,null,null,null,null,null,null,null,null,null,null,null,null,null,null,null,null,null,null,null,null,null,null,null,null,null,null,null,null,null,null,null,null,null,null,null,null,null,null,null,null,null,null,null,null,null,null,null,null,null,null,null,null,null,null,null,null,null,null,null,null,null,null,null,777754]
[null,null,null,null,null,null,null,null,null,null,null,null,null,null,null,null,null,null,null,null,null,null,null,null,null,null,null,null,null,null,null,null,null,null,null,null,null,null,null,null,null,null,null,0,null,null,null,null,null,null,null,null,null,null,null,null,null,null,null,null,null,null,null,null,null,null,null,null,null,null,null,null,null,null,null,null,null,null,null,null,null,null,null,null,null,null,null,null,null,null,null,null,null,null,null,null,null,null,null,null,null,null,null,null,null,null,null,null,null,null,null,null,null,null,null,null,null,null,null,null,null,null,null,0]
[null,"Доходы от штра-фов, пеней, иных сумм принудите-льного изъятия",null,null,null,null,null,null,null,null,null,null,null,null,null,null,null,null,null,null,null,"130",null,null,null,null,null,null,null,null,null,null,null,null,null,null,null,null,null,null,null,null,null,null,null,null,null,null,null,null,null,null,null,null,null,null,null,null,null,"Х",null,null,null,null,null,null,null,null,null,null,null,null,null,null,null,"Х",null,null,null,null,null,null,null,null,null,null,null,null,null,null,null,"Х",null,null,null,null,null,null,null,null,null,null,null,null,null,null,null,"Х",null,null,null,null,null,null,null,null,null,null,null,null,null,null,null,null,null,null,null,null,null,null,null,null,null,null,null,null,null,null,null,"Х"]
[null,"Безвозмездные поступления от наднациональных организаций, пра-вительств иност-ранных государ-ств, международ-ных финансовых организаций",null,null,null,null,null,null,null,null,null,null,null,null,null,null,null,null,null,null,null,"140",null,null,null,null,null,null,null,null,null,null,null,null,null,null,null,null,null,null,null,null,null,null,null,null,null,null,null,null,null,null,null,null,null,null,null,null,null,"Х",null,null,null,null,null,null,null,null,null,null,null,null,null,null,null,"Х",null,null,null,null,null,null,null,null,null,null,null,null,null,null,null,"Х",null,null,null,null,null,null,null,null,null,null,null,null,null,null,null,"Х",null,null,null,null,null,null,null,null,null,null,null,null,null,null,null,null,null,null,null,null,null,null,null,null,null,null,null,null,null,null,null,"Х"]
[null,"Иные субсидии, предоставленные из бюджета",null,null,null,null,null,null,null,null,null,null,null,null,null,null,null,null,null,null,null,"150",null,null,null,null,null,null,null,null,"180",null,null,null,null,null,null,null,null,null,null,null,null,{"$f":"SUM(AR24,AR25)","v":0},null,null,null,null,null,null,null,null,null,null,null,null,null,null,null,"Х",null,null,null,null,null,null,null,null,null,null,null,null,null,null,null,{"$f":"SUM(BX24,BX25)","v":0},null,null,null,null,null,null,null,null,null,null,null,null,null,null,null,null,null,null,null,null,null,null,null,null,null,null,null,null,null,null,null,"Х",null,null,null,null,null,null,null,null,null,null,null,null,null,null,null,"Х",null,null,null,null,null,null,null,null,null,null,null,null,null,null,null,"Х"]
[null,"1. муниц.бюджет "]
[null,"2. муниц.бюджет (льготное питание)"]
[]
[null,"Прочие доходы",null,null,null,null,null,null,null,null,null,null,null,null,null,null,null,null,null,null,null,"160",null,null,null,null,null,null,null,null,null,null,null,null,null,null,null,null,null,null,null,null,null,null,null,null,null,null,null,null,null,null,null,null,null,null,null,null,null,"Х",null,null,null,null,null,null,null,null,null,null,null,null,null,null,null,"Х",null,null,null,null,null,null,null,null,null,null,null,null,null,null,null,"Х",null,null,null,null,null,null,null,null,null,null,null,null,null,null,null,"Х"]
[null,"Доходы от операций с активами",null,null,null,null,null,null,null,null,null,null,null,null,null,null,null,null,null,null,null,"180",null,null,null,null,null,null,null,null,"Х",null,null,null,null,null,null,null,null,null,null,null,null,null,null,null,null,null,null,null,null,null,null,null,null,null,null,null,null,"Х",null,null,null,null,null,null,null,null,null,null,null,null,null,null,null,"Х",null,null,null,null,null,null,null,null,null,null,null,null,null,null,null,"Х",null,null,null,null,null,null,null,null,null,null,null,null,null,null,null,"Х",null,null,null,null,null,null,null,null,null,null,null,null,null,null,null,null,null,null,null,null,null,null,null,null,null,null,null,null,null,null,null,"Х"]
[null,null,null,null,null,null,null,null,null,null,null,null,null,null,null,null,null,null,null,null,null,"Х"]
[null,"Выплаты по расходам, всего:",null,null,null,null,null,null,null,null,null,null,null,null,null,null,null,null,null,null,null,"200",null,null,null,null,null,null,null,null,"Х",null,null,null,null,null,null,null,null,null,null,null,null,{"$f":"SUM(AR31,AR41,AR43,AR50)","v":4195263},null,null,null,null,null,null,null,null,null,null,null,null,null,null,null,{"$f":"SUM(BH31,BH41,BH43,BH48,BH49,BH50,BH73,BH77,)","v":3149366},null,null,null,null,null,null,null,null,null,null,null,null,null,null,null,{"$f":"SUM(BX31,BX41,BX43,BX48,BX49,BX50,BX73,BX77,)","v":0},null,null,null,null,null,null,null,null,null,null,null,null,null,null,null,null,null,null,null,null,null,null,null,null,null,null,null,null,null,null,null,null,null,null,null,null,null,null,null,null,null,null,null,null,null,null,null,{"$f":"SUM(DT31,DT41,DT43,DT48,DT49,DT50,DT73,DT77,)","v":1045897}]
[null,"в том числе на выплаты персоналу, всего:",null,null,null,null,null,null,null,null,null,null,null,null,null,null,null,null,null,null,null,"210",null,null,null,null,null,null,null,null,null,null,null,null,null,null,null,null,null,null,null,null,null,{"$f":"SUM(BH31,BX31,DT31)","v":2788836},null,null,null,null,null,null,null,null,null,null,null,null,null,null,null,{"$f":"SUM(BH32,BH36)","v":2788836},null,null,null,null,null,null,null,null,null,null,null,null,null,null,null,{"$f":"SUM(BX32,BX36)","v":0},null,null,null,null,null,null,null,null,null,null,null,null,null,null,null,null,null,null,null,null,null,null,null,null,null,null,null,null,null,null,null,null,null,null,null,null,null,null,null,null,null,null,null,null,null,null,null,{"$f":"SUM(DT32,DT36)","v":0}]
[null,"из них: оплата труда и ",null,null,null,null,null,null,null,null,null,null,null,null,null,null,null,null,null,null,null,"211",null,null,null,null,null,null,null,null,"111",null,null,null,null,null,null,null,null,null,null,null,null,{"$f":"SUM(BH32,BX32,DT32)","v":2141964},null,null,null,null,null,null,null,null,null,null,null,null,null,null,null,{"$f":"SUM(BH33,BH35)","v":2141964},null,null,null,null,null,null,null,null,null,null,null,null,null,null,null,{"$f":"SUM(BX33,BX35)","v":0},null,null,null,null,null,null,null,null,null,null,null,null,null,null,null,null,null,null,null,null,null,null,null,null,null,null,null,null,null,null,null,null,null,null,null,null,null,null,null,null,null,null,null,null,null,null,null,{"$f":"SUM(DT33,DT35,DT34)","v":0}]
[null,"1. субвенция",null,null,null,null,null,null,null,null,null,null,null,null,null,null,null,null,null,null,null,null,null,null,null,null,null,null,null,null,null,null,null,null,null,null,null,null,null,null,null,null,null,1491140,null,null,null,null,null,null,null,null,null,null,null,null,null,null,null,1491140]
["2. платные услуги",null,null,null,null,null,null,null,null,null,null,null,null,null,null,null,null,null,null,null,null,null,null,null,null,null,null,null,null,null,null,null,null,null,null,null,null,null,null,null,null,null,null,{"$f":"SUM(BH34,BX34,DT34)","v":0}]
[null,"3. муниц.бюджет",null,null,null,null,null,null,null,null,null,null,null,null,null,null,null,null,null,null,null,null,null,null,null,null,null,null,null,null,null,null,null,null,null,null,null,null,null,null,null,null,null,650824,null,null,null,null,null,null,null,null,null,null,null,null,null,null,null,650824]
[null,"начисления на оплату труда",null,null,null,null,null,null,null,null,null,null,null,null,null,null,null,null,null,null,null,null,null,null,null,null,null,null,null,null,"119",null,null,null,null,null,null,null,null,null,null,null,null,646872,null,null,null,null,null,null,null,null,null,null,null,null,null,null,null,{"$f":"SUM(BH37,BH39)","v":646872},null,null,null,null,null,null,null,null,null,null,null,null,null,null,null,{"$f":"SUM(BX37,BX39)","v":0},null,null,null,null,null,null,null,null,null,null,null,null,null,null,null,null,null,null,null,null,null,null,null,null,null,null,null,null,null,null,null,null,null,null,null,null,null,null,null,null,null,null,null,null,null,null,null,{"$f":"SUM(DT37,DT39,DT38)","v":0}]
[null,"1. субвенция",null,null,null,null,null,null,null,null,null,null,null,null,null,null,null,null,null,null,null,null,null,null,null,null,null,null,null,null,null,null,null,null,null,null,null,null,null,null,null,null,null,450323,null,null,null,null,null,null,null,null,null,null,null,null,null,null,null,450323]
["2. платные услуги",null,null,null,null,null,null,null,null,null,null,null,null,null,null,null,null,null,null,null,null,null,null,null,null,null,null,null,null,null,null,null,null,null,null,null,null,null,null,null,null,null,null,{"$f":"SUM(BH38,BX38,DT38)","v":0}]
[null,"3. муниц.бюджет",null,null,null,null,null,null,null,null,null,null,null,null,null,null,null,null,null,null,null,null,null,null,null,null,null,null,null,null,null,null,null,null,null,null,null,null,null,null,null,null,null,196549,null,null,null,null,null,null,null,null,null,null,null,null,null,null,null,196549]
[null,"Прочие выплаты",null,null,null,null,null,null,null,null,null,null,null,null,null,null,null,null,null,null,null,"212"]
[null,"Социальные и иные выплаты населению, всего",null,null,null,null,null,null,null,null,null,null,null,null,null,null,null,null,null,null,null,"220"]
[null,"из них:"]
[null,"Уплата налогов, сборов и иных платежей, всего",null,null,null,null,null,null,null,null,null,null,null,null,null,null,null,null,null,null,null,"230",null,null,null,null,null,null,null,null,null,null,null,null,null,null,null,null,null,null,null,null,null,{"$f":"SUM(BH43,BX43,DT43)","v":23175},null,null,null,null,null,null,null,null,null,null,null,null,null,null,null,{"$f":"SUM(BH45,BH46,BH47)","v":23175},null,null,null,null,null,null,null,null,null,null,null,null,null,null,null,{"$f":"SUM(BX45,BX46,BX47)","v":0},null,null,null,null,null,null,null,null,null,null,null,null,null,null,null,null,null,null,null,null,null,null,null,null,null,null,null,null,null,null,null,null,null,null,null,null,null,null,null,null,null,null,null,null,null,null,null,{"$f":"SUM(DT45,DT46,DT47)","v":0}]
[null,"из них:"]
[null,"налог на иму-щество, землю",null,null,null,null,null,null,null,null,null,null,null,null,null,null,null,null,null,null,null,null,null,null,null,null,null,null,null,null,"851",null,null,null,null,null,null,null,null,null,null,null,null,{"$f":"SUM(BH45,BX45,DT45)","v":23175},null,null,null,null,null,null,null,null,null,null,null,null,null,null,null,23175]
[null,"транспортный ",null,null,null,null,null,null,null,null,null,null,null,null,null,null,null,null,null,null,null,null,null,null,null,null,null,null,null,null,"852",null,null,null,null,null,null,null,null,null,null,null,null,{"$f":"SUM(BH46,BX46,DT46)","v":0}]
[null,"пени, штрафы",null,null,null,null,null,null,null,null,null,null,null,null,null,null,null,null,null,null,null,null,null,null,null,null,null,null,null,null,"853",null,null,null,null,null,null,null,null,null,null,null,null,{"$f":"SUM(BH47,BX47,DT47)","v":0}]
[null,"Безвозмездные перечисления организациям",null,null,null,null,null,null,null,null,null,null,null,null,null,null,null,null,null,null,null,"240"]
[null,"Прочие расходы (кроме расходов на закупку товаров, работ, услуг)",null,null,null,null,null,null,null,null,null,null,null,null,null,null,null,null,null,null,null,"250"]
[null,"Расходы на закупку товаров, работ, услуг, \nвсего",null,null,null,null,null,null,null,null,null,null,null,null,null,null,null,null,null,null,null,"260",null,null,null,null,null,null,null,null,"244",null,null,null,null,null,null,null,null,null,null,null,null,{"$f":"SUM(BH50,BX50,DT50)","v":1383252},null,null,null,null,null,null,null,null,null,null,null,null,null,null,null,{"$f":"SUM(BH52,BH55,BH56,BH59,BH62,BH66,BH68)","v":337355},null,null,null,null,null,null,null,null,null,null,null,null,null,null,null,{"$f":"SUM(BX52,BX55,BX56,BX59,BX62,BX66,BX68)","v":0},null,null,null,null,null,null,null,null,null,null,null,null,null,null,null,null,null,null,null,null,null,null,null,null,null,null,null,null,null,null,null,null,null,null,null,null,null,null,null,null,null,null,null,null,null,null,null,{"$f":"SUM(DT52,DT55,DT56,DT59,DT62,DT66,DT68)","v":1045897}]
[null,"из них:"]
[null,"1. услуги связи",null,null,null,null,null,null,null,null,null,null,null,null,null,null,null,null,null,null,null,null,null,null,null,null,null,null,null,null,null,null,null,null,null,null,null,null,null,null,null,null,null,{"$f":"SUM(BH52,BX52,DT52)","v":0},null,null,null,null,null,null,null,null,null,null,null,null,null,null,null,{"$f":"SUM(BH53,BH54)","v":0},null,null,null,null,null,null,null,null,null,null,null,null,null,null,null,{"$f":"SUM(BX53,BX54)","v":0},null,null,null,null,null,null,null,null,null,null,null,null,null,null,null,null,null,null,null,null,null,null,null,null,null,null,null,null,null,null,null,null,null,null,null,null,null,null,null,null,null,null,null,null,null,null,null,{"$f":"SUM(DT53,DT54)","v":0}]
[null,"субвенция",null,null,null,null,null,null,null,null,null,null,null,null,null,null,null,null,null,null,null,null,null,null,null,null,null,null,null,null,null,null,null,null,null,null,null,null,null,null,null,null,null,0]
[null,"муниц.бюджет",null,null,null,null,null,null,null,null,null,null,null,null,null,null,null,null,null,null,null,null,null,null,null,null,null,null,null,null,null,null,null,null,null,null,null,null,null,null,null,null,null,0]
[null,"2. транспортные услуги",null,null,null,null,null,null,null,null,null,null,null,null,null,null,null,null,null,null,null,null,null,null,null,null,null,null,null,null,null,null,null,null,null,null,null,null,null,null,null,null,null,0]
[null,"3. коммунальные услуги",null,null,null,null,null,null,null,null,null,null,null,null,null,null,null,null,null,null,null,null,null,null,null,null,null,null,null,null,null,null,null,null,null,null,null,null,null,null,null,null,null,371225,null,null,null,null,null,null,null,null,null,null,null,null,null,null,null,{"$f":"SUM(BH57,BH58)","v":103082},null,null,null,null,null,null,null,null,null,null,null,null,null,null,null,{"$f":"SUM(BX57,BX58)","v":0},null,null,null,null,null,null,null,null,null,null,null,null,null,null,null,null,null,null,null,null,null,null,null,null,null,null,null,null,null,null,null,null,null,null,null,null,null,null,null,null,null,null,null,null,null,null,null,{"$f":"SUM(DT57,DT58)","v":268143}]
[null,"муниц.бюджет",null,null,null,null,null,null,null,null,null,null,null,null,null,null,null,null,null,null,null,null,null,null,null,null,null,null,null,null,null,null,null,null,null,null,null,null,null,null,null,null,null,103082,null,null,null,null,null,null,null,null,null,null,null,null,null,null,null,103082]
[null,"возмещение ком. услуг",null,null,null,null,null,null,null,null,null,null,null,null,null,null,null,null,null,null,null,null,null,null,null,null,null,null,null,null,null,null,null,null,null,null,null,null,null,null,null,null,null,268143,null,null,null,null,null,null,null,null,null,null,null,null,null,null,null,null,null,null,null,null,null,null,null,null,null,null,null,null,null,null,null,null,null,null,null,null,null,null,null,null,null,null,null,null,null,null,null,null,null,null,null,null,null,null,null,null,null,null,null,null,null,null,null,null,null,null,null,null,null,null,null,null,null,null,null,null,null,null,null,268143]
[null,"4. услуги по содер-жанию имущества",null,null,null,null,null,null,null,null,null,null,null,null,null,null,null,null,null,null,null,null,null,null,null,null,null,null,null,null,null,null,null,null,null,null,null,null,null,null,null,null,null,0,null,null,null,null,null,null,null,null,null,null,null,null,null,null,null,{"$f":"SUM(BH61)","v":0},null,null,null,null,null,null,null,null,null,null,null,null,null,null,null,{"$f":"SUM(BX61)","v":0},null,null,null,null,null,null,null,null,null,null,null,null,null,null,null,null,null,null,null,null,null,null,null,null,null,null,null,null,null,null,null,null,null,null,null,null,null,null,null,null,null,null,null,null,null,null,null,{"$f":"SUM(DT61,DT60)","v":0}]
["1. платные услуги",null,null,null,null,null,null,null,null,null,null,null,null,null,null,null,null,null,null,null,null,null,null,null,null,null,null,null,null,null,null,null,null,null,null,null,null,null,null,null,null,null,null,{"$f":"DT60","v":0}]
[null,"2. муниц.бюджет",null,null,null,null,null,null,null,null,null,null,null,null,null,null,null,null,null,null,null,null,null,null,null,null,null,null,null,null,null,null,null,null,null,null,null,null,null,null,null,null,null,0]
[null,"5. прочие услуги, работы",null,null,null,null,null,null,null,null,null,null,null,null,null,null,null,null,null,null,null,null,null,null,null,null,null,null,null,null,null,null,null,null,null,null,null,null,null,null,null,null,null,1793,null,null,null,null,null,null,null,null,null,null,null,null,null,null,null,{"$f":"SUM(BH63:BH65)","v":1793},null,null,null,null,null,null,null,null,null,null,null,null,null,null,null,null,null,null,null,null,null,null,null,null,null,null,null,null,null,null,null,null,null,null,null,null,null,null,null,null,null,null,null,null,null,null,null,null,null,null,null,null,null,null,null,null,null,null,null,null,null,null,null,{"$f":"SUM(DT63:DT65)","v":0}]
[null,"1. муниц.бюджет",null,null,null,null,null,null,null,null,null,null,null,null,null,null,null,null,null,null,null,null,null,null,null,null,null,null,null,null,null,null,null,null,null,null,null,null,null,null,null,null,null,0]
[null,"2. платные услуги",null,null,null,null,null,null,null,null,null,null,null,null,null,null,null,null,null,null,null,null,null,null,null,null,null,null,null,null,null,null,null,null,null,null,null,null,null,null,null,null,null,0]
[null,"субвенция",null,null,null,null,null,null,null,null,null,null,null,null,null,null,null,null,null,null,null,null,null,null,null,null,null,null,null,null,null,null,null,null,null,null,null,null,null,null,null,null,null,1793,null,null,null,null,null,null,null,null,null,null,null,null,null,null,null,1793]
[null,"6. увел-ие ст-ти осн.фондов",null,null,null,null,null,null,null,null,null,null,null,null,null,null,null,null,null,null,null,null,null,null,null,null,null,null,null,null,null,null,null,null,null,null,null,null,null,null,null,null,null,0,null,null,null,null,null,null,null,null,null,null,null,null,null,null,null,null,null,null,null,null,null,null,null,null,null,null,null,null,null,null,null,null,null,null,null,null,null,null,null,null,null,null,null,null,null,null,null,null,null,null,null,null,null,null,null,null,null,null,null,null,null,null,null,null,null,null,null,null,null,null,null,null,null,null,null,null,null,null,null,{"$f":"DT67","v":0}]
[null,"1. платные услуги",null,null,null,null,null,null,null,null,null,null,null,null,null,null,null,null,null,null,null,null,null,null,null,null,null,null,null,null,null,null,null,null,null,null,null,null,null,null,null,null,null,{"$f":"SUM(BH67,BX67,DT67)","v":0}]
[null,"7. увел-ие ст-ти мат.запасов",null,null,null,null,null,null,null,null,null,null,null,null,null,null,null,null,null,null,null,null,null,null,null,null,null,null,null,null,null,null,null,null,null,null,null,null,null,null,null,null,null,1010234,null,null,null,null,null,null,null,null,null,null,null,null,null,null,null,{"$f":"SUM(BH69:BW72)","v":232480},null,null,null,null,null,null,null,null,null,null,null,null,null,null,null,{"$f":"SUM(BX69:CM72)","v":0},null,null,null,null,null,null,null,null,null,null,null,null,null,null,null,null,null,null,null,null,null,null,null,null,null,null,null,null,null,null,null,null,null,null,null,null,null,null,null,null,null,null,null,null,null,null,null,{"$f":"SUM(DT69:EI72)","v":777754}]
[null,"субвенция",null,null,null,null,null,null,null,null,null,null,null,null,null,null,null,null,null,null,null,null,null,null,null,null,null,null,null,null,null,null,null,null,null,null,null,null,null,null,null,null,null,15264,null,null,null,null,null,null,null,null,null,null,null,null,null,null,null,15264]
["родительская плата",null,null,null,null,null,null,null,null,null,null,null,null,null,null,null,null,null,null,null,null,null,null,null,null,null,null,null,null,null,null,null,null,null,null,null,null,null,null,null,null,null,null,{"$f":"SUM(BH70,BX70,DT70)","v":777754},null,null,null,null,null,null,null,null,null,null,null,null,null,null,null,null,null,null,null,null,null,null,null,null,null,null,null,null,null,null,null,null,null,null,null,null,null,null,null,null,null,null,null,null,null,null,null,null,null,null,null,null,null,null,null,null,null,null,null,null,null,null,null,null,null,null,null,null,null,null,null,null,null,null,null,null,null,null,null,777754]
["платные услуги",null,null,null,null,null,null,null,null,null,null,null,null,null,null,null,null,null,null,null,null,null,null,null,null,null,null,null,null,null,null,null,null,null,null,null,null,null,null,null,null,null,null,{"$f":"SUM(BH71,BX71,DT71)","v":0}]
[null,"муниц.бюджет",null,null,null,null,null,null,null,null,null,null,null,null,null,null,null,null,null,null,null,null,null,null,null,null,null,null,null,null,null,null,null,null,null,null,null,null,null,null,null,null,null,217216,null,null,null,null,null,null,null,null,null,null,null,null,null,null,null,217216]
[null,"Поступление финансовых активов, всего:",null,null,null,null,null,null,null,null,null,null,null,null,null,null,null,null,null,null,null,"300",null,null,null,null,null,null,null,null,"Х"]
[null,"из них:",null,null,null,null,null,null,null,null,null,null,null,null,null,null,null,null,null,null,null,"Х"]
[null,"Увеличение остатков средств",null,null,null,null,null,null,null,null,null,null,null,null,null,null,null,null,null,null,null,"310"]
[null,"Прочие поступления",null,null,null,null,null,null,null,null,null,null,null,null,null,null,null,null,null,null,null,"320"]
[null,"Выбытие финансовых активов, всего",null,null,null,null,null,null,null,null,null,null,null,null,null,null,null,null,null,null,null,"400"]
[null,"Из них:\nуменьшение остатков средств",null,null,null,null,null,null,null,null,null,null,null,null,null,null,null,null,null,null,null,"410"]
[null,"Прочие выбытия",null,null,null,null,null,null,null,null,null,null,null,null,null,null,null,null,null,null,null,"420"]
[null,"Остаток средств\nна начало года",null,null,null,null,null,null,null,null,null,null,null,null,null,null,null,null,null,null,null,"500",null,null,null,null,null,null,null,null,"Х"]
[null,"Остаток средств\nна конец года",null,null,null,null,null,null,null,null,null,null,null,null,null,null,null,null,null,null,null,"600",null,null,null,null,null,null,null,null,"Х"]

{"sheet":"стр.12","index":3,"n_rows":19,"n_cols":148,"rows_kept":19,"cut":false,"hidden":false,"merged":[[10,131,10,142],[10,119,10,130],[10,107,10,118],[10,95,10,106],[7,107,7,110],[11,95,11,106],[6,119,6,122],[6,123,8,130],[7,119,7,122],[8,95,8,98],[8,107,8,110],[8,119,8,122],[6,107,6,110],[6,111,8,118],[7,95,7,98],[13,32,13,38],[12,32,12,38],[11,32,11,38],[11,39,11,46],[11,1,11,31],[18,1,18,31],[5,119,5,154],[5,83,5,118],[3,39,8,46],[6,59,6,62],[6,63,8,70],[7,59,7,62],[8,59,8,62],[7,47,7,50],[8,47,8,50],[6,71,6,74],[3,47,3,154],[4,83,4,154],[4,47,5,82],[10,143,10,154],[11,107,11,118],[11,119,11,130],[11,131,11,142],[11,143,11,154],[18,143,18,154],[18,59,18,70],[18,71,18,82],[18,83,18,94],[18,95,18,106],[18,107,18,118],[3,0,8,31],[3,32,8,38],[6,75,8,82],[6,51,8,58],[6,47,6,50],[6,83,6,86],[6,87,8,94],[18,32,18,38],[18,39,18,46],[18,47,18,58],[17,1,17,31],[15,39,15,46],[15,47,15,58],[15,1,15,31],[15,32,15,38],[13,39,13,46],[16,1,16,31],[13,1,13,31],[18,119,18,130],[18,131,18,142],[16,32,16,38],[16,39,16,46],[16,119,16,130],[16,131,16,142],[17,47,17,58],[17,107,17,118],[17,59,17,70],[17,71,17,82],[17,83,17,94],[17,95,17,106],[17,32,17,38],[17,39,17,46],[15,143,15,154],[15,95,15,106],[15,107,15,118],[15,131,15,142],[17,119,17,130],[16,47,16,58],[16,83,16,94],[17,143,17,154],[15,71,15,82],[16,143,16,154],[17,131,17,142],[15,119,15,130],[16,95,16,106],[16,107,16,118],[16,59,16,70],[16,71,16,82],[14,107,14,118],[14,119,14,130],[14,131,14,142],[14,83,14,94],[15,83,15,94],[15,59,15,70],[14,1,14,31],[14,32,14,38],[14,39,14,46],[14,47,14,58],[14,59,14,70],[14,71,14,82],[13,131,13,142],[13,143,13,154],[13,95,13,106],[13,119,13,130],[13,107,13,118],[13,59,13,70],[13,71,13,82],[13,83,13,94],[11,47,11,58],[14,143,14,154],[14,95,14,106],[12,143,12,154],[12,95,12,106],[12,107,12,118],[12,119,12,130],[12,131,12,142],[13,47,13,58],[10,1,10,31],[10,32,10,38],[10,39,10,46],[12,47,12,58],[12,83,12,94],[12,59,12,70],[12,71,12,82],[11,83,11,94],[11,59,11,70],[11,71,11,82],[10,83,10,94],[10,59,10,70],[10,71,10,82],[10,47,10,58],[12,39,12,46],[12,1,12,31],[9,143,9,154],[9,95,9,106],[9,107,9,118],[9,0,9,31],[9,32,9,38],[9,39,9,46],[9,47,9,58],[8,131,8,134],[9,131,9,142],[9,59,9,70],[9,71,9,82],[9,83,9,94],[9,119,9,130],[0,1,0,153],[1,57,1,60],[1,61,1,86],[1,87,1,90],[1,91,1,94],[6,99,8,106],[6,95,6,98],[8,143,8,146],[6,131,6,134],[1,95,1,97],[6,143,6,146],[6,147,8,154],[7,143,7,146],[7,71,7,74],[8,71,8,74],[7,83,7,86],[8,83,8,86],[6,135,8,142],[7,131,7,134]]}
[null,"II.I. Показатели выплат по расходам на закупку товаров, работ, услуг Учреждения "]
[null,null,null,null,null,null,null,null,null,null,null,null,null,null,null,null,null,null,null,null,null,null,null,null,null,null,null,null,null,null,null,null,null,null,null,null,null,null,null,null,null,null,null,null,null,null,null,null,null,null,null,null,null,null,null,null,null,"на ",null,null,null,"01 января",null,null,null,null,null,null,null,null,null,null,null,null,null,null,null,null,null,null,null,null,null,null,null,null,null,20,null,null,null,"17",null,null,null," г."]
[null,null,null,null,null,null,null,null,null,null,null,null,null,null,null,null,null,null,null,null,null,null,null,null,null,null,null,null,null,null,null,null,null,null,null,null,null,null,null,null,null,null,null,null,null,null,null,null,null,null,null,null,null,null,null,null,null,null,null,null,null,null,null,null,null,null,null,null,null,null,null,null,null,null,null,null,null,null,null,null,null,null,null,null,null,null,null,null,null,null,null,null,null,null,null,null,null,null,null,null,null,null,null,null,null,null,null,null,null,null,null,null,null,null,null,null,null,null,null,null,null,null,null,null,"таблица 2.1."]
["Наименование показателя",null,null,null,null,null,null,null,null,null,null,null,null,null,null,null,null,null,null,null,null,null,null,null,null,null,null,null,null,null,null,null,"Код строки",null,null,null,null,null,null,"Год начала закупки",null,null,null,null,null,null,null,"Сумма выплат по расходам на закупку товаров, работ и услуг, руб.\n(с точностью до двух знаков после запятой - 0,00)"]
[null,null,null,null,null,null,null,null,null,null,null,null,null,null,null,null,null,null,null,null,null,null,null,null,null,null,null,null,null,null,null,null,null,null,null,null,null,null,null,null,null,null,null,null,null,null,null,"всего на закупки",null,null,null,null,null,null,null,null,null,null,null,null,null,null,null,null,null,null,null,null,null,null,null,null,null,null,null,null,null,null,null,null,null,null,null,"в том числе:"]
[null,null,null,null,null,null,null,null,null,null,null,null,null,null,null,null,null,null,null,null,null,null,null,null,null,null,null,null,null,null,null,null,null,null,null,null,null,null,null,null,null,null,null,null,null,null,null,null,null,null,null,null,null,null,null,null,null,null,null,null,null,null,null,null,null,null,null,null,null,null,null,null,null,null,null,null,null,null,null,null,null,null,null,"в соответствии с Федеральным законом от 5 апреля 2013 г.\n№ 44-ФЗ \"О контрактной системе\nв сфере закупок товаров, работ, услуг для обеспечения государст-венных и муниципальных нужд\"",null,null,null,null,null,null,null,null,null,null,null,null,null,null,null,null,null,null,null,null,null,null,null,null,null,null,null,null,null,null,null,null,null,null,null,"в соответствии с Федеральным законом от 18 июля 2011 г.\n№ 223-ФЗ \"О закупках товаров, работ, услуг отдельными видами юридических лиц\""]
[null,null,null,null,null,null,null,null,null,null,null,null,null,null,null,null,null,null,null,null,null,null,null,null,null,null,null,null,null,null,null,null,null,null,null,null,null,null,null,null,null,null,null,null,null,null,null," г.",null,null,null,"очередной\nфинансовый год",null,null,null,null,null,null,null," г.",null,null,null,"1-ый год планового периода",null,null,null,null,null,null,null," г.",null,null,null,"2-ой год планового периода",null,null,null,null,null,null,null," г.",null,null,null,"очередной\nфинансовый год",null,null,null,null,null,null,null," г.",null,null,null,"1-ый год планового периода",null,null,null,null,null,null,null," г.",null,null,null,"2-ой год планового периода",null,null,null,null,null,null,null," г.",null,null,null,"очередной\nфинансовый год",null,null,null,null,null,null,null," г.",null,null,null,"1-ый год планового периода",null,null,null,null,null,null,null," г.",null,null,null,"2-ой год планового периода"]
[null,null,null,null,null,null,null,null,null,null,null,null,null,null,null,null,null,null,null,null,null,null,null,null,null,null,null,null,null,null,null,null,null,null,null,null,null,null,null,null,null,null,null,null,null,null,null,"17",null,null,null,null,null,null,null,null,null,null,null,null,null,null,null,null,null,null,null,null,null,null,null,null,null,null,null,null,null,null,null,null,null,null,null,"17",null,null,null,null,null,null,null,null,null,null,null,null,null,null,null,null,null,null,null,null,null,null,null,null,null,null,null,null,null,null,null,null,null,null,null,"17"]
[null,null,null,null,null,null,null,null,null,null,null,null,null,null,null,null,null,null,null,null,null,null,null,null,null,null,null,null,null,null,null,null,null,null,null,null,null,null,null,null,null,null,null,null,null,null,null,"на 20",null,null,null,null,null,null,null,null,null,null,null,"на 20",null,null,null,null,null,null,null,null,null,null,null,"на 20",null,null,null,null,null,null,null,null,null,null,null,"на 20",null,null,null,null,null,null,null,null,null,null,null,"на 20",null,null,null,null,null,null,null,null,null,null,null,"на 20",null,null,null,null,null,null,null,null,null,null,null,"на 20",null,null,null,null,null,null,null,null,null,null,null,"на 20",null,null,null,null,null,null,null,null,null,null,null,"на 20"]
[1,null,null,null,null,null,null,null,null,null,null,null,null,null,null,null,null,null,null,null,null,null,null,null,null,null,null,null,null,null,null,null,2,null,null,null,null,null,null,3,null,null,null,null,null,null,null,4,null,null,null,null,null,null,null,null,null,null,null,5,null,null,null,null,null,null,null,null,null,null,null,6,null,null,null,null,null,null,null,null,null,null,null,7,null,null,null,null,null,null,null,null,null,null,null,8,null,null,null,null,null,null,null,null,null,null,null,9,null,null,null,null,null,null,null,null,null,null,null,10,null,null,null,null,null,null,null,null,null,null,null,11,null,null,null,null,null,null,null,null,null,null,null,12]
[null,"Выплаты по расходам на закупку товаров, работ, услуг всего:",null,null,null,null,null,null,null,null,null,null,null,null,null,null,null,null,null,null,null,null,null,null,null,null,null,null,null,null,null,null,"0001",null,null,null,null,null,null,"Х",null,null,null,null,null,null,null,{"$f":"CF11+DP11","v":1383252},null,null,null,null,null,null,null,null,null,null,null,null,null,null,null,null,null,null,null,null,null,null,null,null,null,null,null,null,null,null,null,null,null,null,null,337355,null,null,null,null,null,null,null,null,null,null,null,null,null,null,null,null,null,null,null,null,null,null,null,null,null,null,null,null,null,null,null,null,null,null,null,1045897]
[null,"В том числе:\nна оплату контрактов, заключенных до начала очередного финансового года:",null,null,null,null,null,null,null,null,null,null,null,null,null,null,null,null,null,null,null,null,null,null,null,null,null,null,null,null,null,null,"1001",null,null,null,null,null,null,"Х"]
[null,"из них:",null,null,null,null,null,null,null,null,null,null,null,null,null,null,null,null,null,null,null,null,null,null,null,null,null,null,null,null,null,null,"Х"]
[null,"1.",null,null,null,null,null,null,null,null,null,null,null,null,null,null,null,null,null,null,null,null,null,null,null,null,null,null,null,null,null,null,"1002"]
[null,"2.",null,null,null,null,null,null,null,null,null,null,null,null,null,null,null,null,null,null,null,null,null,null,null,null,null,null,null,null,null,null,"1003"]
[null,"На закупку товаров, работ, услуг по году начала закупки:",null,null,null,null,null,null,null,null,null,null,null,null,null,null,null,null,null,null,null,null,null,null,null,null,null,null,null,null,null,null,"2001",null,null,null,null,null,null,null,null,null,null,null,null,null,null,{"$f":"CF16+DP16","v":1383252},null,null,null,null,null,null,null,null,null,null,null,null,null,null,null,null,null,null,null,null,null,null,null,null,null,null,null,null,null,null,null,null,null,null,null,337355,null,null,null,null,null,null,null,null,null,null,null,null,null,null,null,null,null,null,null,null,null,null,null,null,null,null,null,null,null,null,null,null,null,null,null,1045897]
[null,"из них:",null,null,null,null,null,null,null,null,null,null,null,null,null,null,null,null,null,null,null,null,null,null,null,null,null,null,null,null,null,null,"Х"]
[null,"1.",null,null,null,null,null,null,null,null,null,null,null,null,null,null,null,null,null,null,null,null,null,null,null,null,null,null,null,null,null,null,"2002"]
[null,"2.",null,null,null,null,null,null,null,null,null,null,null,null,null,null,null,null,null,null,null,null,null,null,null,null,null,null,null,null,null,null,"2003"]

{"sheet":"стр.13","index":4,"n_rows":34,"n_cols":81,"rows_kept":34,"cut":false,"hidden":false,"merged":[[0,1,0,103],[1,22,1,25],[1,26,1,71],[1,72,1,75],[1,76,1,79],[1,80,1,82],[2,26,2,71],[4,0,4,37],[4,38,4,70],[4,71,4,104],[5,0,5,37],[5,38,5,70],[5,71,5,104],[6,1,6,37],[6,38,6,70],[6,71,6,104],[7,1,7,37],[7,38,7,70],[7,71,7,104],[8,1,8,37],[8,38,8,70],[8,71,8,104],[9,1,9,37],[9,38,9,70],[9,71,9,104],[13,0,13,37],[13,38,13,70],[13,71,13,104],[11,0,11,104],[14,0,14,37],[14,38,14,70],[14,71,14,104],[15,1,15,37],[15,38,15,70],[15,71,15,104],[16,1,16,37],[16,38,16,70],[16,71,16,104],[17,1,17,37],[17,38,17,70],[17,71,17,104],[20,49,20,69],[20,71,20,104],[21,49,21,69],[21,71,21,104],[24,49,24,69],[24,71,24,104],[25,49,25,69],[25,71,25,104],[27,49,27,69],[27,71,27,104],[28,49,28,69],[28,71,28,104],[29,49,29,69],[29,71,29,104],[30,49,30,69],[30,71,30,104],[31,7,31,38],[33,1,33,2],[33,3,33,6],[33,7,33,9],[33,10,33,27],[33,28,33,31],[33,32,33,35]]}
[null,"III. Сведения о средствах, поступающих\nво временное распоряжение Учреждения"]
[null,null,null,null,null,null,null,null,null,null,null,null,null,null,null,null,null,null,null,null,null,null,"на ",null,null,null,"01 января",null,null,null,null,null,null,null,null,null,null,null,null,null,null,null,null,null,null,null,null,null,null,null,null,null,null,null,null,null,null,null,null,null,null,null,null,null,null,null,null,null,null,null,null,null,20,null,null,null,"17",null,null,null," г."]
[null,null,null,null,null,null,null,null,null,null,null,null,null,null,null,null,null,null,null,null,null,null,null,null,null,null,"(очередной финансовый год)"]
[null,null,null,null,null,null,null,null,null,null,null,null,null,null,null,null,null,null,null,null,null,null,null,null,null,null,null,null,null,null,null,null,null,null,null,null,null,null,null,null,null,null,null,null,null,null,null,null,null,null,null,null,null,null,null,null,null,null,null,null,null,null,null,null,null,null,null,null,null,null,null,null,null,null,"таблица 3"]
["Наименование показателя",null,null,null,null,null,null,null,null,null,null,null,null,null,null,null,null,null,null,null,null,null,null,null,null,null,null,null,null,null,null,null,null,null,null,null,null,null,"Код строки",null,null,null,null,null,null,null,null,null,null,null,null,null,null,null,null,null,null,null,null,null,null,null,null,null,null,null,null,null,null,null,null,"Сумма\n(руб. с точностью до двух\nзнаков после запятой - 0,00)"]
[1,null,null,null,null,null,null,null,null,null,null,null,null,null,null,null,null,null,null,null,null,null,null,null,null,null,null,null,null,null,null,null,null,null,null,null,null,null,2,null,null,null,null,null,null,null,null,null,null,null,null,null,null,null,null,null,null,null,null,null,null,null,null,null,null,null,null,null,null,null,null,3]
[null,"Остаток средств на начало года",null,null,null,null,null,null,null,null,null,null,null,null,null,null,null,null,null,null,null,null,null,null,null,null,null,null,null,null,null,null,null,null,null,null,null,null,"010"]
[null,"Остаток средств на конец года",null,null,null,null,null,null,null,null,null,null,null,null,null,null,null,null,null,null,null,null,null,null,null,null,null,null,null,null,null,null,null,null,null,null,null,null,"020"]
[null,"Поступление",null,null,null,null,null,null,null,null,null,null,null,null,null,null,null,null,null,null,null,null,null,null,null,null,null,null,null,null,null,null,null,null,null,null,null,null,"030"]
[null,"Выбытие",null,null,null,null,null,null,null,null,null,null,null,null,null,null,null,null,null,null,null,null,null,null,null,null,null,null,null,null,null,null,null,null,null,null,null,null,"040"]
[]
["IV. Справочная информация"]
[null,null,null,null,null,null,null,null,null,null,null,null,null,null,null,null,null,null,null,null,null,null,null,null,null,null,null,null,null,null,null,null,null,null,null,null,null,null,null,null,null,null,null,null,null,null,null,null,null,null,null,null,null,null,null,null,null,null,null,null,null,null,null,null,null,null,null,null,null,null,null,null,null,null,null,"таблица 4"]
["Наименование показателя",null,null,null,null,null,null,null,null,null,null,null,null,null,null,null,null,null,null,null,null,null,null,null,null,null,null,null,null,null,null,null,null,null,null,null,null,null,"Код строки",null,null,null,null,null,null,null,null,null,null,null,null,null,null,null,null,null,null,null,null,null,null,null,null,null,null,null,null,null,null,null,null,"Сумма (тыс. руб.)"]
[1,null,null,null,null,null,null,null,null,null,null,null,null,null,null,null,null,null,null,null,null,null,null,null,null,null,null,null,null,null,null,null,null,null,null,null,null,null,2,null,null,null,null,null,null,null,null,null,null,null,null,null,null,null,null,null,null,null,null,null,null,null,null,null,null,null,null,null,null,null,null,3]
[null,"Объем публичных обязательств, всего:",null,null,null,null,null,null,null,null,null,null,null,null,null,null,null,null,null,null,null,null,null,null,null,null,null,null,null,null,null,null,null,null,null,null,null,null,"010"]
[null,"Объем бюджетных инвестиций \n(в части переданных полномочий государственного заказчика в соответствии с Бюджетным кодексом Российской Федерации), всего:",null,null,null,null,null,null,null,null,null,null,null,null,null,null,null,null,null,null,null,null,null,null,null,null,null,null,null,null,null,null,null,null,null,null,null,null,"020"]
[null,"Объем средств, поступивших во временное распоряжение, всего:",null,null,null,null,null,null,null,null,null,null,null,null,null,null,null,null,null,null,null,null,null,null,null,null,null,null,null,null,null,null,null,null,null,null,null,null,"030"]
[]
[null,"Руководитель муниципального учреждения"]
[null,"(подразделения) (уполномоченное лицо)",null,null,null,null,null,null,null,null,null,null,null,null,null,null,null,null,null,null,null,null,null,null,null,null,null,null,null,null,null,null,null,null,null,null,null,null,null,null,null,null,null,null,null,null,null,null,null,null,null,null,null,null,null,null,null,null,null,null,null,null,null,null,null,null,null,null,null,null,null,"Н.С.Юсяева"]
[null,null,null,null,null,null,null,null,null,null,null,null,null,null,null,null,null,null,null,null,null,null,null,null,null,null,null,null,null,null,null,null,null,null,null,null,null,null,null,null,null,null,null,null,null,null,null,null,null,"(подпись)",null,null,null,null,null,null,null,null,null,null,null,null,null,null,null,null,null,null,null,null,null,"(расшифровка подписи)"]
[null,"Заместитель руководителя государственного"]
[null,"учреждения (подразделения)"]
[null,"по финансовым вопросам"]
[null,null,null,null,null,null,null,null,null,null,null,null,null,null,null,null,null,null,null,null,null,null,null,null,null,null,null,null,null,null,null,null,null,null,null,null,null,null,null,null,null,null,null,null,null,null,null,null,null,"(подпись)",null,null,null,null,null,null,null,null,null,null,null,null,null,null,null,null,null,null,null,null,null,"(расшифровка подписи)"]
[null,"Бухгалтер "]
[null,"учреждения (подразделения)",null,null,null,null,null,null,null,null,null,null,null,null,null,null,null,null,null,null,null,null,null,null,null,null,null,null,null,null,null,null,null,null,null,null,null,null,null,null,null,null,null,null,null,null,null,null,null,null,null,null,null,null,null,null,null,null,null,null,null,null,null,null,null,null,null,null,null,null,null,"Т.М.Каткова"]
[null,null,null,null,null,null,null,null,null,null,null,null,null,null,null,null,null,null,null,null,null,null,null,null,null,null,null,null,null,null,null,null,null,null,null,null,null,null,null,null,null,null,null,null,null,null,null,null,null,"(подпись)",null,null,null,null,null,null,null,null,null,null,null,null,null,null,null,null,null,null,null,null,null,"(расшифровка подписи)"]
[null,"Исполнитель",null,null,null,null,null,null,null,null,null,null,null,null,null,null,null,null,null,null,null,null,null,null,null,null,null,null,null,null,null,null,null,null,null,null,null,null,null,null,null,null,null,null,null,null,null,null,null,null,null,null,null,null,null,null,null,null,null,null,null,null,null,null,null,null,null,null,null,null,null,"Т.М.Каткова"]
[null,null,null,null,null,null,null,null,null,null,null,null,null,null,null,null,null,null,null,null,null,null,null,null,null,null,null,null,null,null,null,null,null,null,null,null,null,null,null,null,null,null,null,null,null,null,null,null,null,"(подпись)",null,null,null,null,null,null,null,null,null,null,null,null,null,null,null,null,null,null,null,null,null,"(расшифровка подписи)"]
[null,"Тел."]
[]
[null,"\"",null,"01",null,null,null,"\"",null,null,"января",null,null,null,null,null,null,null,null,null,null,null,null,null,null,null,null,null,20,null,null,null,"17",null,null,null," г."]